fUSD/lending_fUSD_20260611
["ID","MTS","AMOUNT","RATE_DAILY","PERIOD"]
[424753103,1781125842000,-3402.88,0.00013698,2]
[424753108,1781125842000,-3402.88,0.00013698,2]
[424753100,1781125842000,-3402.88,0.00013698,2]
[424753104,1781125842000,-3402.88,0.00013698,2]
[424753107,1781125842000,-894.83,0.00013698,2]
[424753105,1781125842000,-3402.88,0.00013698,2]
[424753106,1781125842000,-3402.88,0.00013698,2]
[424753109,1781125842000,-894.83,0.00013698,2]
[424753110,1781125842000,-3402.88,0.00013698,2]
[424753101,1781125842000,-3402.88,0.00013698,2]
[424753143,1781125842000,-500.0,0.00013698,2]
[424753093,1781125842000,-500.0,0.00013698,2]
[424753145,1781125842000,-500.0,0.00013698,2]
[424753175,1781125842000,-500.0,0.00013698,2]
[424753186,1781125842000,-500.0,0.00013698,2]
[424753176,1781125842000,-500.0,0.00013698,2]
[424753177,1781125842000,-500.0,0.00013698,2]
[424753179,1781125842000,-500.0,0.00013698,2]
[424753178,1781125842000,-500.0,0.00013698,2]
[424753181,1781125842000,-500.0,0.00013698,2]
[424753180,1781125842000,-500.0,0.00013698,2]
[424753182,1781125842000,-500.0,0.00013698,2]
[424753187,1781125842000,-500.0,0.00013698,2]
[424753190,1781125842000,-500.0,0.00013698,2]
[424753195,1781125842000,-500.0,0.00013698,2]
[424753189,1781125842000,-500.0,0.00013698,2]
[424753193,1781125842000,-500.0,0.00013698,2]
[424753192,1781125842000,-500.0,0.00013698,2]
[424753196,1781125842000,-500.0,0.00013698,2]
[424753197,1781125842000,-500.0,0.00013698,2]
[424753198,1781125842000,-500.0,0.00013698,2]
[424753191,1781125842000,-500.0,0.00013698,2]
[424753188,1781125842000,-500.0,0.00013698,2]
[424753199,1781125842000,-500.0,0.00013698,2]
[424753204,1781125842000,-500.0,0.00013698,2]
[424753201,1781125842000,-500.0,0.00013698,2]
[424753200,1781125842000,-500.0,0.00013698,2]
[424753207,1781125842000,-500.0,0.00013698,2]
[424753205,1781125842000,-500.0,0.00013698,2]
[424753141,1781125842000,-500.0,0.00013698,2]
[424753185,1781125842000,-500.0,0.00013698,2]
[424753184,1781125842000,-500.0,0.00013698,2]
[424753203,1781125842000,-500.0,0.00013698,2]
[424753170,1781125842000,-500.0,0.00013698,2]
[424753144,1781125842000,-500.0,0.00013698,2]
[424753150,1781125842000,-500.0,0.00013698,2]
[424753149,1781125842000,-500.0,0.00013698,2]
[424753146,1781125842000,-500.0,0.00013698,2]
[424753151,1781125842000,-500.0,0.00013698,2]
[424753161,1781125842000,-500.0,0.00013698,2]
[424753160,1781125842000,-500.0,0.00013698,2]
[424753183,1781125842000,-413.03435697,0.00013698,2]
[424753162,1781125842000,-500.0,0.00013698,2]
[424753154,1781125842000,-225.08989443,0.00013698,2]
[424753153,1781125842000,-500.0,0.00013698,2]
[424753155,1781125842000,-500.0,0.00013698,2]
[424753157,1781125842000,-500.0,0.00013698,2]
[424753152,1781125842000,-500.0,0.00013698,2]
[424753159,1781125842000,-500.0,0.00013698,2]
[424753168,1781125842000,-500.0,0.00013698,2]
[424753156,1781125842000,-500.0,0.00013698,2]
[424753172,1781125842000,-500.0,0.00013698,2]
[424753173,1781125842000,-500.0,0.00013698,2]
[424753171,1781125842000,-500.0,0.00013698,2]
[424753165,1781125842000,-500.0,0.00013698,2]
[424753169,1781125842000,-500.0,0.00013698,2]
[424753167,1781125842000,-500.0,0.00013698,2]
[424753174,1781125842000,-500.0,0.00013698,2]
[424753164,1781125842000,-500.0,0.00013698,2]
[424753163,1781125842000,-500.0,0.00013698,2]
[424753158,1781125842000,-500.0,0.00013698,2]
[424753166,1781125842000,-500.0,0.00013698,2]
[424753244,1781125843000,-500.0,0.00013699,2]
[424753245,1781125843000,-500.0,0.00013699,2]
[424753246,1781125843000,-500.0,0.00013699,2]
[424753241,1781125843000,-500.0,0.00013699,2]
[424753243,1781125843000,-500.0,0.00013699,2]
[424753238,1781125843000,-500.0,0.00013699,2]
[424753247,1781125843000,-500.0,0.00013699,2]
[424753239,1781125843000,-500.0,0.00013699,2]
[424753248,1781125843000,-500.0,0.00013699,2]
[424753240,1781125843000,-500.0,0.00013699,2]
[424753242,1781125843000,-500.0,0.00013699,2]
[424753250,1781125843000,-500.0,0.00013699,2]
[424753260,1781125843000,-500.0,0.00013699,2]
[424753249,1781125843000,-500.0,0.00013699,2]
[424753255,1781125843000,-500.0,0.00013699,2]
[424753254,1781125843000,-500.0,0.00013699,2]
[424753252,1781125843000,-500.0,0.00013699,2]
[424753253,1781125843000,-500.0,0.00013699,2]
[424753259,1781125843000,-500.0,0.00013699,2]
[424753257,1781125843000,-500.0,0.00013699,2]
[424753256,1781125843000,-500.0,0.00013699,2]
[424753258,1781125843000,-500.0,0.00013699,2]
[424753261,1781125843000,-500.0,0.00013699,2]
[424753270,1781125843000,-500.0,0.00013699,2]
[424753234,1781125843000,-500.0,0.00013699,2]
[424753251,1781125843000,-500.0,0.00013699,2]
[424753233,1781125843000,-200.0,0.00013699,2]
[424753220,1781125843000,-500.0,0.00013698,2]
[424753235,1781125843000,-500.0,0.00013699,2]
[424753262,1781125843000,-500.0,0.00013699,2]
[424753208,1781125843000,-500.0,0.00013698,2]
[424753209,1781125843000,-502.14487461,0.00013698,2]
[424753212,1781125843000,-500.0,0.00013698,2]
[424753210,1781125843000,-175.0,0.00013698,2]
[424753213,1781125843000,-500.0,0.00013698,2]
[424753211,1781125843000,-175.58311357,0.00013698,2]
[424753214,1781125843000,-500.0,0.00013698,2]
[424753216,1781125843000,-500.0,0.00013698,2]
[424753215,1781125843000,-500.0,0.00013698,2]
[424753218,1781125843000,-500.0,0.00013698,2]
[424753221,1781125843000,-500.0,0.00013698,2]
[424753231,1781125843000,-968.49,0.00013699,2]
[424753217,1781125843000,-500.0,0.00013698,2]
[424753219,1781125843000,-500.0,0.00013698,2]
[424753224,1781125843000,-500.0,0.00013698,2]
[424753223,1781125843000,-500.0,0.00013698,2]
[424753226,1781125843000,-500.0,0.00013698,2]
[424753225,1781125843000,-500.0,0.00013698,2]
[424753236,1781125843000,-500.0,0.00013699,2]
[424753229,1781125843000,-500.0,0.00013698,2]
[424753237,1781125843000,-500.0,0.00013699,2]
[424753228,1781125843000,-500.0,0.00013698,2]
[424753227,1781125843000,-500.0,0.00013698,2]
[424753230,1781125843000,-500.0,0.00013698,2]
[424753232,1781125843000,-674.88,0.00013699,2]
[424753222,1781125843000,-500.0,0.00013698,2]
[424753265,1781125843000,-500.0,0.00013699,2]
[424753269,1781125843000,-500.0,0.00013699,2]
[424753264,1781125843000,-500.0,0.00013699,2]
[424753300,1781125843000,-186.72563653,0.000137,2]
[424753302,1781125843000,-150.0,0.000137,2]
[424753305,1781125843000,-150.0,0.0001371,2]
[424753307,1781125843000,-49474.18506095,0.0001371,2]
[424753310,1781125843000,-186.72563653,0.0001373,2]
[424753306,1781125843000,-500.0,0.0001371,2]
[424753309,1781125843000,-186.72563653,0.00013715,2]
[424753308,1781125843000,-150.0,0.00013715,2]
[424753312,1781125843000,-186.72563653,0.00013745,2]
[424753313,1781125843000,-150.0,0.00013748,2]
[424753314,1781125843000,-150.0,0.0001376,2]
[424753315,1781125843000,-186.72563653,0.0001376,2]
[424753316,1781125843000,-150.0,0.00013765,2]
[424753319,1781125843000,-150.0,0.00013787,2]
[424753320,1781125843000,-150.0,0.00013787,2]
[424753318,1781125843000,-186.72563653,0.00013775,2]
[424753321,1781125843000,-186.72563653,0.0001379,2]
[424753317,1781125843000,-150.0,0.00013771,2]
[424753322,1781125843000,-150.0,0.00013806,2]
[424753323,1781125843000,-186.72563653,0.00013806,2]
[424753325,1781125843000,-150.0,0.00013813,2]
[424753263,1781125843000,-500.0,0.00013699,2]
[424753327,1781125843000,-150.0,0.00013821,2]
[424753326,1781125843000,-186.72563653,0.00013821,2]
[424753328,1781125843000,-186.72563653,0.00013836,2]
[424753303,1781125843000,-150.0,0.000137,2]
[424753304,1781125843000,-278.37577561,0.000137,2]
[424753324,1781125843000,-150.0,0.00013812,2]
[424753311,1781125843000,-150.0,0.00013731,2]
[424753301,1781125843000,-241.49,0.000137,2]
[424753267,1781125843000,-500.0,0.00013699,2]
[424753266,1781125843000,-500.0,0.00013699,2]
[424753272,1781125843000,-500.0,0.00013699,2]
[424753283,1781125843000,-500.0,0.00013699,2]
[424753274,1781125843000,-500.0,0.00013699,2]
[424753277,1781125843000,-500.0,0.00013699,2]
[424753280,1781125843000,-500.0,0.00013699,2]
[424753279,1781125843000,-500.0,0.00013699,2]
[424753273,1781125843000,-500.0,0.00013699,2]
[424753278,1781125843000,-500.0,0.00013699,2]
[424753271,1781125843000,-500.0,0.00013699,2]
[424753275,1781125843000,-500.0,0.00013699,2]
[424753268,1781125843000,-500.0,0.00013699,2]
[424753281,1781125843000,-500.0,0.00013699,2]
[424753276,1781125843000,-500.0,0.00013699,2]
[424753295,1781125843000,-500.0,0.00013699,2]
[424753298,1781125843000,-500.0,0.00013699,2]
[424753296,1781125843000,-500.0,0.00013699,2]
[424753292,1781125843000,-500.0,0.00013699,2]
[424753299,1781125843000,-500.0,0.00013699,2]
[424753285,1781125843000,-500.0,0.00013699,2]
[424753294,1781125843000,-500.0,0.00013699,2]
[424753287,1781125843000,-500.0,0.00013699,2]
[424753289,1781125843000,-500.0,0.00013699,2]
[424753291,1781125843000,-500.0,0.00013699,2]
[424753297,1781125843000,-500.0,0.00013699,2]
[424753355,1781125844000,-150.0,0.00013987,2]
[424753366,1781125844000,-500.0,0.0001405,2]
[424753358,1781125844000,-186.72563653,0.00014002,2]
[424753359,1781125844000,-150.0,0.00014009,2]
[424753357,1781125844000,-250.0,0.00014,2]
[424753380,1781125844000,-20377.03518995,0.00014135,2]
[424753363,1781125844000,-186.72563653,0.00014033,2]
[424753362,1781125844000,-150.0,0.00014033,2]
[424753365,1781125844000,-186.72563653,0.00014048,2]
[424753364,1781125844000,-150.0,0.00014043,2]
[424753369,1781125844000,-150.0,0.00014074,2]
[424753370,1781125844000,-150.0,0.00014078,2]
[424753372,1781125844000,-150.0,0.00014087,2]
[424753371,1781125844000,-186.72563653,0.00014078,2]
[424753367,1781125844000,-150.0,0.00014055,2]
[424753375,1781125844000,-150.0,0.00014095,2]
[424753376,1781125844000,-150.0,0.00014098,2]
[424753373,1781125844000,-150.0,0.00014087,2]
[424753377,1781125844000,-186.72563653,0.00014108,2]
[424753374,1781125844000,-186.72563653,0.00014093,2]
[424753353,1781125844000,-150.0,0.00013987,2]
[424753368,1781125844000,-186.72563653,0.00014063,2]
[424753354,1781125844000,-186.72563653,0.00013987,2]
[424753346,1781125844000,-150.0,0.00013937,2]
[424753351,1781125844000,-186.72563653,0.00013972,2]
[424753332,1781125844000,-150.0,0.00013862,2]
[424753330,1781125844000,-186.72563653,0.00013851,2]
[424753331,1781125844000,-150.0,0.00013852,2]
[424753329,1781125844000,-150.0,0.00013851,2]
[424753333,1781125844000,-186.72563653,0.00013866,2]
[424753335,1781125844000,-150.0,0.00013879,2]
[424753341,1781125844000,-186.72563653,0.00013896,2]
[424753345,1781125844000,-150.0,0.00013933,2]
[424753334,1781125844000,-150.0,0.00013876,2]
[424753336,1781125844000,-186.72563653,0.00013881,2]
[424753356,1781125844000,-26563.13130266,0.0001399,2]
[424753347,1781125844000,-150.0,0.00013942,2]
[424753337,1781125844000,-150.0,0.00013893,2]
[424753348,1781125844000,-186.72563653,0.00013942,2]
[424753342,1781125844000,-186.72563653,0.00013912,2]
[424753343,1781125844000,-186.72563653,0.00013927,2]
[424753344,1781125844000,-150.0,0.00013932,2]
[424753349,1781125844000,-150.0,0.00013944,2]
[424753361,1781125844000,-186.72563653,0.00014017,2]
[424753350,1781125844000,-186.72563653,0.00013957,2]
[424753352,1781125844000,-150.0,0.00013974,2]
[424753360,1781125844000,-150.0,0.00014014,2]
[424753340,1781125844000,-150.0,0.00013896,2]
[424753378,1781125844000,-150.0,0.00014123,2]
[424753396,1781125844000,-186.72563653,0.00014229,2]
[424753381,1781125844000,-150.0,0.00014136,2]
[424753414,1781125844000,-49474.18506095,0.00014305,2]
[424753408,1781125844000,-150.0,0.0001427,2]
[424753411,1781125844000,-150.0,0.00014298,2]
[424753409,1781125844000,-186.72563653,0.00014275,2]
[424753406,1781125844000,-150.0,0.00014265,2]
[424753413,1781125844000,-186.72563653,0.00014305,2]
[424753416,1781125844000,-150.0,0.0001432,2]
[424753420,1781125844000,-150.0,0.00014351,2]
[424753415,1781125844000,-186.72563653,0.0001432,2]
[424753418,1781125844000,-186.72563653,0.00014335,2]
[424753422,1781125844000,-186.72563653,0.00014366,2]
[424753425,1781125844000,-186.72563653,0.00014381,2]
[424753417,1781125844000,-150.0,0.00014335,2]
[424753421,1781125844000,-186.72563653,0.00014351,2]
[424753423,1781125844000,-150.0,0.00014376,2]
[424753424,1781125844000,-150.0,0.00014379,2]
[424753426,1781125844000,-150.0,0.00014387,2]
[424753427,1781125844000,-150.0,0.00014387,2]
[424753429,1781125844000,-186.72563653,0.00014396,2]
[424753428,1781125844000,-150.0,0.00014396,2]
[424753379,1781125844000,-186.72563653,0.00014123,2]
[424753410,1781125844000,-186.72563653,0.0001429,2]
[424753412,1781125844000,-150.0,0.00014305,2]
[424753419,1781125844000,-150.0,0.00014338,2]
[424753404,1781125844000,-150.0,0.0001426,2]
[424753382,1781125844000,-186.72563653,0.00014139,2]
[424753407,1781125844000,-81152.18240106,0.00014269,2]
[424753383,1781125844000,-150.0,0.00014139,2]
[424753385,1781125844000,-150.0,0.00014154,2]
[424753388,1781125844000,-150.0,0.00014176,2]
[424753384,1781125844000,-186.72563653,0.00014154,2]
[424753387,1781125844000,-186.72563653,0.00014169,2]
[424753386,1781125844000,-150.0,0.00014169,2]
[424753389,1781125844000,-186.72563653,0.00014184,2]
[424753392,1781125844000,-150.0,0.00014209,2]
[424753391,1781125844000,-150.0,0.00014204,2]
[424753390,1781125844000,-186.72563653,0.00014199,2]
[424753395,1781125844000,-150.0,0.00014217,2]
[424753400,1781125844000,-150.0,0.00014237,2]
[424753397,1781125844000,-1555.5,0.00014236,2]
[424753402,1781125844000,-186.72563653,0.00014245,2]
[424753394,1781125844000,-186.72563653,0.00014214,2]
[424753399,1781125844000,-150.0,0.00014237,2]
[424753403,1781125844000,-150.0,0.00014257,2]
[424753401,1781125844000,-150.0,0.00014237,2]
[424753393,1781125844000,-150.0,0.00014214,2]
[424753398,1781125844000,-150.0,0.00014237,2]
[424753405,1781125844000,-186.72563653,0.0001426,2]
[424753461,1781125845000,-316.16211611,0.00014499,2]
[424753464,1781125845000,-186.72563653,0.00014502,2]
[424753466,1781125845000,-150.0,0.0001453,2]
[424753467,1781125845000,-150.0,0.00014532,2]
[424753465,1781125845000,-186.72563653,0.00014517,2]
[424753460,1781125845000,-500.0,0.00014499,2]
[424753462,1781125845000,-26900.0,0.000145,5]
[424753459,1781125845000,-150.0,0.00014487,2]
[424753468,1781125845000,-186.72563653,0.00014532,2]
[424753463,1781125845000,-150.0,0.000145,2]
[424753469,1781125845000,-150.0,0.00014537,2]
[424753480,1781125845000,-5300.0,0.000146,5]
[424753472,1781125845000,-186.72563653,0.00014547,2]
[424753475,1781125845000,-186.72563653,0.00014578,2]
[424753476,1781125845000,-150.0,0.00014581,2]
[424753479,1781125845000,-150.0,0.00014598,2]
[424753478,1781125845000,-150.0,0.00014595,2]
[424753473,1781125845000,-186.72563653,0.00014562,2]
[424753471,1781125845000,-150.0,0.00014542,2]
[424753477,1781125845000,-186.72563653,0.00014593,2]
[424753474,1781125845000,-150.0,0.00014578,2]
[424753481,1781125845000,-186.72563653,0.00014608,2]
[424753458,1781125845000,-186.72563653,0.00014487,2]
[424753470,1781125845000,-150.0,0.00014541,2]
[424753457,1781125845000,-150.0,0.00014487,2]
[424753433,1781125845000,-500.0,0.00014399,2]
[424753454,1781125845000,-150.0,0.0001446,2]
[424753431,1781125845000,-3713.909439,0.00014398,2]
[424753432,1781125845000,-500.0,0.00014399,2]
[424753484,1781125845000,-150.0,0.00014623,2]
[424753430,1781125845000,-928.47736,0.00014398,2]
[424753434,1781125845000,-500.0,0.00014399,2]
[424753436,1781125845000,-150.0,0.000144,2]
[424753437,1781125845000,-3402.88,0.000144,2]
[424753438,1781125845000,-3402.88,0.000144,2]
[424753439,1781125845000,-3402.88,0.000144,2]
[424753440,1781125845000,-3402.88,0.000144,2]
[424753444,1781125845000,-894.83,0.000144,2]
[424753456,1781125845000,-186.72563653,0.00014472,2]
[424753446,1781125845000,-894.86194654,0.000144,2]
[424753441,1781125845000,-3403.04204309,0.000144,2]
[424753442,1781125845000,-894.83,0.000144,2]
[424753443,1781125845000,-894.83,0.000144,2]
[424753447,1781125845000,-186.72563653,0.00014411,2]
[424753449,1781125845000,-186.72563653,0.00014426,2]
[424753448,1781125845000,-150.0,0.00014419,2]
[424753453,1781125845000,-186.72563653,0.00014456,2]
[424753455,1781125845000,-150.0,0.00014465,2]
[424753451,1781125845000,-150.0,0.00014441,2]
[424753452,1781125845000,-186.72563653,0.00014441,2]
[424753450,1781125845000,-150.0,0.00014431,2]
[424753445,1781125845000,-894.83,0.000144,2]
[424753482,1781125845000,-150.0,0.00014612,2]
[424753435,1781125845000,-500.0,0.00014399,2]
[424753485,1781125845000,-186.72563653,0.00014623,2]
[424753514,1781125845000,-186.72563653,0.0001479,2]
[424753518,1781125845000,-25000.0,0.00014803,3]
[424753519,1781125845000,-150.0,0.00014805,2]
[424753522,1781125845000,-186.72563653,0.0001482,2]
[424753521,1781125845000,-25000.0,0.00014812,3]
[424753515,1781125845000,-150.0,0.00014791,2]
[424753520,1781125845000,-186.72563653,0.00014805,2]
[424753516,1781125845000,-25000.0,0.00014794,3]
[424753523,1781125845000,-150.0,0.0001482,2]
[424753517,1781125845000,-5300.0,0.000148,5]
[424753534,1781125845000,-186.72563653,0.0001485,2]
[424753513,1781125845000,-1613.0535,0.00014784,2]
[424753524,1781125845000,-25000.0,0.00014821,3]
[424753530,1781125845000,-500.0,0.00014838,2]
[424753529,1781125845000,-3474.52099466,0.00014838,2]
[424753527,1781125845000,-186.72563653,0.00014835,2]
[424753526,1781125845000,-25000.0,0.0001483,3]
[424753531,1781125845000,-25000.0,0.00014838,3]
[424753532,1781125845000,-25000.0,0.00014847,3]
[424753533,1781125845000,-150.0,0.0001485,2]
[424753535,1781125845000,-500.0,0.00014855,2]
[424753537,1781125845000,-25000.0,0.00014856,3]
[424753536,1781125845000,-150.0,0.00014856,2]
[424753483,1781125845000,-150.0,0.00014622,2]
[424753528,1781125845000,-150.0,0.00014836,2]
[424753508,1781125845000,-186.72563653,0.00014759,2]
[424753525,1781125845000,-150.0,0.00014824,2]
[424753506,1781125845000,-186.72563653,0.00014744,2]
[424753488,1781125845000,-150.0,0.00014653,2]
[424753509,1781125845000,-150.0,0.00014764,2]
[424753487,1781125845000,-186.72563653,0.00014653,2]
[424753490,1781125845000,-150.0,0.00014662,2]
[424753486,1781125845000,-186.72563653,0.00014638,2]
[424753489,1781125845000,-150.0,0.00014661,2]
[424753491,1781125845000,-150.0,0.00014668,2]
[424753493,1781125845000,-2129.0,0.00014675,2]
[424753494,1781125845000,-186.72563653,0.00014684,2]
[424753492,1781125845000,-186.72563653,0.00014668,2]
[424753496,1781125845000,-150.0,0.00014687,2]
[424753500,1781125845000,-150.0,0.00014709,2]
[424753495,1781125845000,-150.0,0.00014687,2]
[424753497,1781125845000,-186.72563653,0.00014699,2]
[424753511,1781125845000,-3474.52099466,0.00014775,2]
[424753498,1781125845000,-5300.0,0.000147,5]
[424753504,1781125845000,-186.72563653,0.00014729,2]
[424753507,1781125845000,-150.0,0.00014759,2]
[424753512,1781125845000,-150.0,0.00014784,2]
[424753503,1781125845000,-150.0,0.00014726,2]
[424753505,1781125845000,-150.0,0.00014743,2]
[424753510,1781125845000,-186.72563653,0.00014774,2]
[424753502,1781125845000,-186.72563653,0.00014714,2]
[424753499,1781125845000,-150.0,0.00014703,2]
[424753501,1781125845000,-150.0,0.00014714,2]
[424753583,1781125846000,-186.72563653,0.00014911,2]
[424753574,1781125846000,-5300.0,0.000149,5]
[424753579,1781125846000,-81152.18240106,0.000149,2]
[424753581,1781125846000,-3474.52099466,0.000149,2]
[424753578,1781125846000,-2000.0,0.000149,2]
[424753580,1781125846000,-20377.03518995,0.000149,2]
[424753582,1781125846000,-150.0,0.00014905,2]
[424753573,1781125846000,-3234.51554614,0.000149,2]
[424753586,1781125846000,-173.67,0.00014928,2]
[424753585,1781125846000,-186.72563653,0.00014926,2]
[424753584,1781125846000,-150.0,0.00014921,2]
[424753588,1781125846000,-150.0,0.00014931,2]
[424753600,1781125846000,-150.0,0.00014986,2]
[424753589,1781125846000,-150.0,0.00014941,2]
[424753594,1781125846000,-243.47,0.00014985,2]
[424753593,1781125846000,-186.72563653,0.00014971,2]
[424753595,1781125846000,-1862.06,0.00014985,2]
[424753590,1781125846000,-186.72563653,0.00014941,2]
[424753592,1781125846000,-186.72563653,0.00014956,2]
[424753591,1781125846000,-150.0,0.00014946,2]
[424753596,1781125846000,-257.15629635,0.00014986,2]
[424753597,1781125846000,-259.72963901,0.00014986,2]
[424753598,1781125846000,-225.2504377,0.00014986,2]
[424753575,1781125846000,-308.74725217,0.000149,2]
[424753587,1781125846000,-241.08,0.00014928,2]
[424753571,1781125846000,-151.0,0.000149,2]
[424753540,1781125846000,-500.0,0.00014864,2]
[424753572,1781125846000,-13652.47801013,0.000149,3]
[424753538,1781125846000,-5800.0,0.00014858,2]
[424753599,1781125846000,-167.4955917,0.00014986,2]
[424753541,1781125846000,-500.0,0.00014864,2]
[424753542,1781125846000,-500.0,0.00014864,2]
[424753545,1781125846000,-186.72563653,0.00014865,2]
[424753539,1781125846000,-500.0,0.00014864,2]
[424753543,1781125846000,-150.0,0.00014865,2]
[424753544,1781125846000,-25000.0,0.00014865,3]
[424753557,1781125846000,-5800.0,0.00014883,2]
[424753559,1781125846000,-25000.0,0.00014891,3]
[424753564,1781125846000,-150.0,0.00014895,2]
[424753546,1781125846000,-5800.0,0.00014866,2]
[424753561,1781125846000,-5800.0,0.00014891,2]
[424753556,1781125846000,-25000.0,0.00014882,3]
[424753550,1781125846000,-25000.0,0.00014874,3]
[424753548,1781125846000,-151.0,0.00014866,2]
[424753554,1781125846000,-150.0,0.00014875,2]
[424753553,1781125846000,-5800.0,0.00014874,2]
[424753555,1781125846000,-186.72563653,0.0001488,2]
[424753566,1781125846000,-186.72563653,0.00014895,2]
[424753570,1781125846000,-5800.0,0.000149,2]
[424753577,1781125846000,-250.0,0.000149,2]
[424753568,1781125846000,-25000.0,0.000149,3]
[424753569,1781125846000,-400.0,0.000149,2]
[424753567,1781125846000,-500.0,0.00014899,2]
[424753576,1781125846000,-49474.18506095,0.000149,2]
[424753610,1781125846000,-500.0,0.00014999,2]
[424753613,1781125846000,-500.0,0.00014999,2]
[424753611,1781125846000,-500.0,0.00014999,2]
[424753632,1781125846000,-500.0,0.00014999,2]
[424753633,1781125846000,-500.0,0.00014999,2]
[424753637,1781125846000,-500.0,0.00014999,2]
[424753640,1781125846000,-500.0,0.00014999,2]
[424753639,1781125846000,-500.0,0.00014999,2]
[424753644,1781125846000,-500.0,0.00014999,2]
[424753638,1781125846000,-500.0,0.00014999,2]
[424753641,1781125846000,-500.0,0.00014999,2]
[424753642,1781125846000,-500.0,0.00014999,2]
[424753643,1781125846000,-500.0,0.00014999,2]
[424753647,1781125846000,-500.0,0.00014999,2]
[424753645,1781125846000,-500.0,0.00014999,2]
[424753646,1781125846000,-500.0,0.00014999,2]
[424753648,1781125846000,-500.0,0.00014999,2]
[424753609,1781125846000,-477.63805442,0.00014999,2]
[424753649,1781125846000,-500.0,0.00014999,2]
[424753651,1781125846000,-500.0,0.00014999,2]
[424753652,1781125846000,-500.0,0.00014999,2]
[424753653,1781125846000,-500.0,0.00014999,2]
[424753657,1781125846000,-500.0,0.00014999,2]
[424753659,1781125846000,-500.0,0.00014999,2]
[424753658,1781125846000,-500.0,0.00014999,2]
[424753654,1781125846000,-500.0,0.00014999,2]
[424753656,1781125846000,-500.0,0.00014999,2]
[424753660,1781125846000,-500.0,0.00014999,2]
[424753635,1781125846000,-500.0,0.00014999,2]
[424753630,1781125846000,-500.0,0.00014999,2]
[424753650,1781125846000,-500.0,0.00014999,2]
[424753629,1781125846000,-500.0,0.00014999,2]
[424753631,1781125846000,-500.0,0.00014999,2]
[424753602,1781125846000,-244.03049337,0.00014986,2]
[424753601,1781125846000,-190.96821533,0.00014986,2]
[424753604,1781125846000,-186.72563653,0.00014986,2]
[424753606,1781125846000,-437.6520897,0.0001499,2]
[424753603,1781125846000,-284.66694044,0.00014986,2]
[424753608,1781125846000,-500.0,0.00014998,2]
[424753607,1781125846000,-437.6520897,0.0001499,2]
[424753623,1781125846000,-500.0,0.00014999,2]
[424753615,1781125846000,-500.0,0.00014999,2]
[424753612,1781125846000,-500.0,0.00014999,2]
[424753614,1781125846000,-630.39633207,0.00014999,2]
[424753605,1781125846000,-215.44236381,0.00014986,2]
[424753616,1781125846000,-500.0,0.00014999,2]
[424753625,1781125846000,-500.0,0.00014999,2]
[424753624,1781125846000,-500.0,0.00014999,2]
[424753628,1781125846000,-500.0,0.00014999,2]
[424753627,1781125846000,-500.0,0.00014999,2]
[424753626,1781125846000,-537.14703498,0.00014999,2]
[424753618,1781125846000,-500.0,0.00014999,2]